[Event "Fagernes GM Open Autumn 2024"]
[Site "Fagernes"]
[Date "2024.10.10"]
[Round "6.21"]
[White "Gaikwad, Siddhant"]
[Black "Welling, Gerard"]
[Result "1/2-1/2"]
[ECO "B15"]
[WhiteElo "2039"]
[BlackElo "2206"]
[Annotator "RC"]
[PlyCount "92"]
[EventDate "2024.10.03"]
[EventType "swiss"]
[EventCountry "NOR"]
[SourceTitle "playchess.com"]
[Source "ChessBase"]
[SourceQuality "1"]
[TimeControl "40/6000:2400+30"]

1. e4 {[%emt 0:01:31]} c6 {[%emt 0:00:55]} 2. d4 {[%emt 0:00:00]} g6 {[%emt 0:00:00]} 3. Nf3 {[%emt 0:00:00]} Bg7 {[%emt 0:00:00]} 4. Nc3 {[%emt 0:00:00]} d5 {[%emt 0:00:00]} 5. e5 {[%emt 0:00:23]} Bg4 {[%emt 0:00:33]} 6. Be2 {[%emt 0:00:47]} Bxf3 {[%emt 0:01:35]} 7. Bxf3 {[%emt 0:00:00]} e6 {[%emt 0:00:00]} 8. Bf4 {[%emt 0:01:22]} Nd7 {[%emt 0:00:32]} 9. Qd2 {[%emt 0:00:11]} a6 {[%emt 0:04:15]} 10. O-O-O {[%emt 0:04:56]} b5 {[%emt 0:00:02]} 11. Kb1 {[%emt 0:01:10]} Nb6 {[%emt 0:09:09]} 12. b3 {[%emt 0:00:54]} Qc7 {[%emt 0:12:46]} 13. h4 {[%emt 0:00:59]} h6 {[%emt 0:01:10]} 14. g4 {[%emt 0:04:41]} Ne7 {[%emt 0:03:57]} 15. Ne2 {[%emt 0:12:23]} c5 {[%emt 0:08:12]} 16. dxc5 {[%emt 0:05:46]} Qxc5 {[%emt 0:00:28]} 17. Nd4 {[%emt 0:01:02]} Nd7 {[%emt 0:04:15]} 18. Rhe1 {[%emt 0:03:11]} Rc8 {[%emt 0:00:29]} 19. Bg2 {[%emt 0:00:58]} Qc3 {[%emt 0:03:41]} 20. Qc1 {[%emt 0:05:58]} Qa5 {[%emt 0:01:43]} 21. Bd2 {[%emt 0:03:33]} Qc7 {[%emt 0:01:32]} 22. f4 {[%emt 0:00:13]} Nc6 {[%emt 0:01:05]} 23. Nxc6 {[%emt 0:02:31]} Qxc6 {[%emt 0:00:00]} 24. Bb4 {[%emt 0:01:12]} h5 {[%emt 0:02:30]} 25. g5 {[%emt 0:14:45]} Bf8 {[%emt 0:00:44]} 26. Bd6 {[%emt 0:01:26]} Bxd6 {[%emt 0:04:14]} 27. exd6 {[%emt 0:00:52]} Kf8 {[%emt 0:00:00]} 28. f5 {[%emt 0:02:40]} gxf5 {[%emt 0:00:00]} 29. g6 {[%emt 0:00:41]} Kg7 {[%emt 0:16:13]} 30. gxf7 {[%emt 0:11:00]} Kxf7 {[%emt 0:00:08]} 31. Bxd5 {[%emt 0:12:08]} exd5 {[%emt 0:00:11]} 32. Re7+ {[%emt 0:00:00]} Kf8 {[%emt 0:01:23]} 33. Qb2 {[%emt 0:00:00]} Rg8 {[%emt 0:06:32]} 34. Rxd7 {[%emt 0:00:00]} Qxd7 {[%emt 0:00:00]} 35. Qf6+ {[%emt 0:00:00]} Qf7 {[%emt 0:00:00]} 36. d7 {[%emt 0:00:00]} Rb8 {[%emt 0:01:50]} 37. d8=Q+ {[%emt 0:00:00]} Rxd8 {[%emt 0:00:00]} 38. Qxd8+ {[%emt 0:00:00]} Kg7 {[%emt 0:00:00]} 39. Qd6 {[%emt 0:00:00]} Re8 {[%emt 0:01:43]} 40. Qxa6 {[%emt 0:00:00]} f4 {[%emt 0:03:25]} 41. Rg1+ {[%emt 0:42:25]} Kh7 {[%emt 0:43:09]} 42. Qxb5 {[%emt 0:00:53]} f3 {[%emt 0:00:51]} 43. Qd3+ {[%emt 0:00:00]} Re4 {[%emt 0:00:00]} 44. Rf1 {[%emt 0:00:00]} f2 {[%emt 0:00:00]} 45. Qd2 {[%emt 0:00:00]} Rf4 {[%emt 0:00:00]} 46. a4 {[%emt 0:00:00]} Rf3 {[%emt 0:07:40]} 1/2-1/2

[Event "Fagernes GM Open Autumn 2024"]
[Site "Fagernes"]
[Date "2024.10.10"]
[Round "6.22"]
[White "Westrum, Kim Roger Hansen"]
[Black "Aamodt, Peder Marcus"]
[Result "1/2-1/2"]
[ECO "D00"]
[WhiteElo "2205"]
[BlackElo "2126"]
[Annotator "RC"]
[PlyCount "63"]
[EventDate "2024.10.03"]
[EventType "swiss"]
[EventCountry "NOR"]
[SourceTitle "playchess.com"]
[Source "ChessBase"]
[SourceQuality "1"]
[TimeControl "40/6000:2400+30"]

1. d4 {[%emt 0:00:00]} Nf6 {[%emt 0:03:16]} 2. Nc3 {[%emt 0:00:00]} d5 {[%emt 0:00:00]} 3. Bf4 {[%emt 0:00:00]} c5 {[%emt 0:00:00]} 4. e4 {[%emt 0:00:00]} Nxe4 {[%emt 0:00:00]} 5. Nxe4 {[%emt 0:00:00]} dxe4 {[%emt 0:00:00]} 6. dxc5 {[%emt 0:00:00]} Qa5+ {[%emt 0:00:00]} 7. c3 {[%emt 0:00:00]} Qxc5 {[%emt 0:00:00]} 8. Qa4+ {[%emt 0:00:00]} Nc6 {[%emt 0:00:00]} 9. Qxe4 {[%emt 0:00:00]} g6 {[%emt 0:00:00]} 10. Nf3 {[%emt 0:00:00]} Bg7 {[%emt 0:00:00]} 11. Qe3 {[%emt 0:00:00]} Qxe3+ {[%emt 0:00:00]} 12. Bxe3 {[%emt 0:00:00]} Bf5 {[%emt 0:00:44]} 13. Be2 {[%emt 0:00:00]} O-O {[%emt 0:00:39]} 14. O-O {[%emt 0:00:00]} Rfd8 {[%emt 0:00:42]} 15. Rfd1 {[%emt 0:06:43]} Bf6 {[%emt 0:05:43]} 16. Nd2 {[%emt 0:29:02]} Ne5 {[%emt 0:05:03]} 17. Nb3 {[%emt 0:00:00]} Bd3 {[%emt 0:00:11]} 18. Kf1 {[%emt 0:04:39]} b6 {[%emt 0:03:04]} 19. Bd4 {[%emt 0:02:15]} Bxe2+ {[%emt 0:02:03]} 20. Kxe2 {[%emt 0:00:00]} Nc4 {[%emt 0:00:00]} 21. Bxf6 {[%emt 0:01:51]} exf6 {[%emt 0:00:00]} 22. Rxd8+ {[%emt 0:00:00]} Rxd8 {[%emt 0:00:00]} 23. Rb1 {[%emt 0:00:00]} Re8+ {[%emt 0:00:42]} 24. Kd1 {[%emt 0:11:29]} Ne5 {[%emt 0:01:57]} 25. f3 {[%emt 0:13:49]} Nc4 {[%emt 0:01:09]} 26. g3 {[%emt 0:00:00]} Ne3+ {[%emt 0:03:21]} 27. Ke2 {[%emt 0:00:00]} Nc4+ {[%emt 0:20:29]} 28. Kf2 {[%emt 0:00:43]} Re3 {[%emt 0:03:36]} 29. Rd1 {[%emt 0:14:08]} Re7 {[%emt 0:02:43]} 30. Rb1 {[%emt 0:01:41]} Re3 {[%emt 0:01:02]} 31. Rd1 {[%emt 0:00:15]} Re7 {[%emt 0:00:03]} 32. Rb1 {[%emt 0:00:34]} 1/2-1/2

[Event "Fagernes GM Open Autumn 2024"]
[Site "Fagernes"]
[Date "2024.10.10"]
[Round "6.23"]
[White "Gudbrandsen, Gustav"]
[Black "Stromhaug, Kristoffer Wang"]
[Result "1-0"]
[ECO "C55"]
[WhiteElo "2197"]
[BlackElo "1960"]
[Annotator "RC"]
[PlyCount "59"]
[EventDate "2024.10.03"]
[EventType "swiss"]
[EventCountry "NOR"]
[SourceTitle "playchess.com"]
[Source "ChessBase"]
[SourceQuality "1"]
[TimeControl "40/6000:2400+30"]

1. e4 {[%emt 0:00:00]} e5 {[%emt 0:00:00]} 2. Bc4 {[%emt 0:00:00]} Nf6 {[%emt 0:00:32]} 3. d3 {[%emt 0:00:00]} Nc6 {[%emt 0:01:56]} 4. Nf3 {[%emt 0:02:50]} d6 {[%emt 0:05:33]} 5. Ng5 {[%emt 0:05:11]} d5 {[%emt 0:08:20]} 6. exd5 {[%emt 0:00:09]} Nd4 {[%emt 0:00:55]} 7. c3 {[%emt 0:06:21]} Nf5 {[%emt 0:04:10]} 8. Bb5+ {[%emt 0:01:36]} Bd7 {[%emt 0:00:00]} 9. Qa4 {[%emt 0:02:28]} Be7 {[%emt 0:05:22]} 10. Bxd7+ {[%emt 0:01:01]} Nxd7 {[%emt 0:01:01]} 11. Nf3 {[%emt 0:05:00]} O-O {[%emt 0:01:49]} 12. O-O {[%emt 0:01:03]} f6 {[%emt 0:04:46]} 13. Qc2 {[%emt 0:17:41]} g6 {[%emt 0:05:57]} 14. c4 {[%emt 0:01:54]} Bc5 {[%emt 0:04:33]} 15. Nc3 {[%emt 0:00:18]} a5 {[%emt 0:01:00]} 16. Ne4 {[%emt 0:00:25]} Ba7 {[%emt 0:00:46]} 17. Rd1 {[%emt 0:10:36]} g5 {[%emt 0:00:46]} 18. h3 {[%emt 0:07:51]} h5 {[%emt 0:03:35]} 19. g4 {[%emt 0:01:06]} Ng7 {[%emt 0:03:36]} 20. Ng3 {[%emt 0:08:13]} Qc8 {[%emt 0:04:06]} 21. gxh5 {[%emt 0:02:33]} Nc5 {[%emt 0:01:42]} 22. h6 {[%emt 0:02:50]} Nf5 {[%emt 0:00:00]} 23. d4 {[%emt 0:01:29]} e4 {[%emt 0:00:38]} 24. Nxe4 {[%emt 0:01:13]} Nxe4 {[%emt 0:04:08]} 25. Qxe4 {[%emt 0:00:00]} Re8 {[%emt 0:00:00]} 26. Qd3 {[%emt 0:01:15]} Kh8 {[%emt 0:00:00]} 27. Bd2 {[%emt 0:07:24]} Nxh6 {[%emt 0:00:12]} 28. Nh2 {[%emt 0:00:00]} Nf5 {[%emt 0:02:48]} 29. Re1 {[%emt 0:00:00]} Rg8 {[%emt 0:00:40]} 30. Re6 {[%emt 0:00:16]} 1-0

[Event "Fagernes GM Open Autumn 2024"]
[Site "Fagernes"]
[Date "2024.10.10"]
[Round "6.24"]
[White "Sian, Shadi"]
[Black "Bjorkan, Olav"]
[Result "1-0"]
[ECO "E39"]
[WhiteElo "2182"]
[BlackElo "2022"]
[Annotator "RC"]
[PlyCount "85"]
[EventDate "2024.10.03"]
[EventType "swiss"]
[EventCountry "NOR"]
[SourceTitle "playchess.com"]
[Source "ChessBase"]
[SourceQuality "1"]
[TimeControl "40/6000:2400+30"]

1. d4 {[%emt 0:04:06]} Nf6 {[%emt 0:00:00]} 2. c4 {[%emt 0:00:00]} e6 {[%emt 0:00:00]} 3. Nc3 {[%emt 0:00:00]} Bb4 {[%emt 0:00:00]} 4. Qc2 {[%emt 0:00:00]} c5 {[%emt 0:00:00]} 5. dxc5 {[%emt 0:00:17]} O-O {[%emt 0:00:27]} 6. a3 {[%emt 0:02:00]} Bxc5 {[%emt 0:00:20]} 7. Nf3 {[%emt 0:03:30]} d5 {[%emt 0:05:03]} 8. e3 {[%emt 0:01:23]} dxc4 {[%emt 0:09:14]} 9. Bxc4 {[%emt 0:00:00]} a6 {[%emt 0:00:00]} 10. Bd3 {[%emt 0:04:19]} Nbd7 {[%emt 0:01:47]} 11. Ne4 {[%emt 0:15:26]} b6 {[%emt 0:07:25]} 12. Nxf6+ {[%emt 0:08:19]} Nxf6 {[%emt 0:00:22]} 13. b4 {[%emt 0:00:00]} Be7 {[%emt 0:04:36]} 14. Bb2 {[%emt 0:00:00]} Bb7 {[%emt 0:01:33]} 15. Rd1 {[%emt 0:00:00]} Qc8 {[%emt 0:01:41]} 16. Qb1 {[%emt 0:01:55]} h6 {[%emt 0:03:58]} 17. O-O {[%emt 0:00:04]} Nd7 {[%emt 0:30:48]} 18. Rd2 {[%emt 0:08:05]} Bf6 {[%emt 0:07:11]} 19. Rc1 {[%emt 0:00:13]} Qb8 {[%emt 0:00:10]} 20. Bh7+ {[%emt 0:05:15]} Kh8 {[%emt 0:00:00]} 21. Rxd7 {[%emt 0:00:00]} Bxb2 {[%emt 0:00:00]} 22. Qxb2 {[%emt 0:00:39]} Kxh7 {[%emt 0:00:00]} 23. Rcc7 {[%emt 0:00:14]} Bxf3 {[%emt 0:03:24]} 24. Rxf7 {[%emt 0:00:39]} Rxf7 {[%emt 0:00:07]} 25. Rxf7 {[%emt 0:00:00]} e5 {[%emt 0:00:01]} 26. gxf3 {[%emt 0:01:59]} Qd6 {[%emt 0:00:00]} 27. Qc2+ {[%emt 0:00:58]} Qg6+ {[%emt 0:00:00]} 28. Qxg6+ {[%emt 0:00:00]} Kxg6 {[%emt 0:00:00]} 29. Rb7 {[%emt 0:00:00]} b5 {[%emt 0:00:00]} 30. Rb6+ {[%emt 0:00:00]} Kf7 {[%emt 0:00:16]} 31. Kg2 {[%emt 0:00:00]} Ke7 {[%emt 0:04:07]} 32. h4 {[%emt 0:01:24]} h5 {[%emt 0:03:52]} 33. Kg3 {[%emt 0:00:17]} Kd7 {[%emt 0:00:23]} 34. Rg6 {[%emt 0:09:24]} Kc7 {[%emt 0:01:11]} 35. Rxg7+ {[%emt 0:00:28]} Kd6 {[%emt 0:00:34]} 36. Rg5 {[%emt 0:00:40]} a5 {[%emt 0:00:58]} 37. f4 {[%emt 0:00:00]} exf4+ {[%emt 0:00:26]} 38. Kxf4 {[%emt 0:00:00]} axb4 {[%emt 0:00:28]} 39. axb4 {[%emt 0:00:00]} Kc6 {[%emt 0:00:00]} 40. Rc5+ {[%emt 0:00:00]} Kb6 {[%emt 0:00:00]} 41. Re5 {[%emt 0:39:40]} Rf8+ {[%emt 0:40:52]} 42. Rf5 {[%emt 0:00:09]} Rc8 {[%emt 0:00:11]} 43. Kg5 {[%emt 0:00:14]} 1-0

[Event "Fagernes GM Open Autumn 2024"]
[Site "Fagernes"]
[Date "2024.10.10"]
[Round "6.25"]
[White "Mannion, Stephen R"]
[Black "Vijayakumar, Rishi"]
[Result "0-1"]
[ECO "C56"]
[WhiteElo "2142"]
[BlackElo "2172"]
[Annotator "RC"]
[PlyCount "120"]
[EventDate "2024.10.03"]
[EventType "swiss"]
[EventCountry "NOR"]
[SourceTitle "playchess.com"]
[Source "ChessBase"]
[SourceQuality "1"]
[TimeControl "40/6000:2400+30"]

1. e4 {[%emt 0:01:41]} e5 {[%emt 0:00:00]} 2. Nf3 {[%emt 0:00:00]} Nc6 {[%emt 0:00:00]} 3. Bc4 {[%emt 0:00:00]} Nf6 {[%emt 0:00:00]} 4. d4 {[%emt 0:00:00]} exd4 {[%emt 0:00:00]} 5. e5 {[%emt 0:00:00]} d5 {[%emt 0:00:00]} 6. Bb5 {[%emt 0:00:00]} Nd7 {[%emt 0:00:23]} 7. O-O {[%emt 0:00:42]} Be7 {[%emt 0:02:52]} 8. Re1 {[%emt 0:04:02]} O-O {[%emt 0:03:55]} 9. Bxc6 {[%emt 0:00:00]} bxc6 {[%emt 0:00:00]} 10. Nxd4 {[%emt 0:00:00]} Nb8 {[%emt 0:00:00]} 11. Nc3 {[%emt 0:01:21]} c5 {[%emt 0:01:00]} 12. Nf3 {[%emt 0:00:00]} Be6 {[%emt 0:00:53]} 13. Bf4 {[%emt 0:02:57]} h6 {[%emt 0:02:40]} 14. h3 {[%emt 0:01:25]} Re8 {[%emt 0:05:56]} 15. Qd2 {[%emt 0:00:01]} c6 {[%emt 0:00:11]} 16. Ne2 {[%emt 0:09:47]} Nd7 {[%emt 0:04:11]} 17. c3 {[%emt 0:08:05]} Nf8 {[%emt 0:00:37]} 18. Ng3 {[%emt 0:07:55]} Nh7 {[%emt 0:10:30]} 19. Nh2 {[%emt 0:12:29]} Bg5 {[%emt 0:02:03]} 20. Ng4 {[%emt 0:07:09]} Rb8 {[%emt 0:03:32]} 21. b3 {[%emt 0:05:11]} Bxg4 {[%emt 0:07:53]} 22. hxg4 {[%emt 0:00:00]} g6 {[%emt 0:07:07]} 23. Rad1 {[%emt 0:06:03]} Bxf4 {[%emt 0:00:29]} 24. Qxf4 {[%emt 0:00:00]} Qg5 {[%emt 0:00:00]} 25. Qa4 {[%emt 0:00:13]} Rxe5 {[%emt 0:03:49]} 26. Rxe5 {[%emt 0:00:00]} Qxe5 {[%emt 0:00:00]} 27. Qxc6 {[%emt 0:00:00]} Qxc3 {[%emt 0:00:43]} 28. Qxd5 {[%emt 0:01:34]} Nf6 {[%emt 0:00:58]} 29. Qf3 {[%emt 0:00:00]} Qe5 {[%emt 0:02:25]} 30. Nf1 {[%emt 0:05:16]} Kg7 {[%emt 0:02:29]} 31. Ne3 {[%emt 0:00:00]} Re8 {[%emt 0:01:17]} 32. Rc1 {[%emt 0:20:21]} Rd8 {[%emt 0:06:33]} 33. Qc6 {[%emt 0:01:19]} Ne4 {[%emt 0:01:58]} 34. Rf1 {[%emt 0:01:14]} Qf4 {[%emt 0:05:29]} 35. Nc4 {[%emt 0:00:33]} Nxf2 {[%emt 0:10:35]} 36. Qxc5 {[%emt 0:00:00]} Rd4 {[%emt 0:00:00]} 37. Qe5+ {[%emt 0:00:00]} Qxe5 {[%emt 0:00:00]} 38. Nxe5 {[%emt 0:00:00]} Nxg4 {[%emt 0:00:00]} 39. Nc6 {[%emt 0:00:00]} Rd2 {[%emt 0:00:00]} 40. Rf4 {[%emt 0:00:09]} Ne3 {[%emt 0:00:00]} 41. Re4 {[%emt 0:03:49]} Rxg2+ {[%emt 0:01:47]} 42. Kh1 {[%emt 0:00:04]} Re2 {[%emt 0:00:08]} 43. Kg1 {[%emt 0:00:42]} Rg2+ {[%emt 0:01:57]} 44. Kh1 {[%emt 0:00:02]} Re2 {[%emt 0:00:33]} 45. Kg1 {[%emt 0:00:02]} f5 {[%emt 0:00:12]} 46. Re7+ {[%emt 0:02:16]} Kf6 {[%emt 0:00:18]} 47. Rxa7 {[%emt 0:00:07]} f4 {[%emt 0:02:49]} 48. Nd4 {[%emt 0:02:18]} Rg2+ {[%emt 0:00:11]} 49. Kh1 {[%emt 0:00:01]} Ke5 {[%emt 0:04:57]} 50. Nf3+ {[%emt 0:00:04]} Ke4 {[%emt 0:00:23]} 51. Nh4 {[%emt 0:02:13]} Rg3 {[%emt 0:04:36]} 52. Ra4+ {[%emt 0:03:18]} Ke5 {[%emt 0:01:16]} 53. Ra5+ {[%emt 0:00:59]} Kf6 {[%emt 0:00:10]} 54. Ra6+ {[%emt 0:02:25]} Kf7 {[%emt 0:00:07]} 55. Ra7+ {[%emt 0:04:14]} Ke8 {[%emt 0:00:38]} 56. a4 {[%emt 0:04:06]} Rh3+ {[%emt 0:00:40]} 57. Kg1 {[%emt 0:00:04]} Rxh4 {[%emt 0:00:07]} 58. a5 {[%emt 0:00:01]} Rh5 {[%emt 0:00:52]} 59. a6 {[%emt 0:00:13]} Ra5 {[%emt 0:00:15]} 60. b4 {[%emt 0:00:15]} Ra2 {[%emt 0:00:23]} 0-1

[Event "Fagernes GM Open Autumn 2024"]
[Site "Fagernes"]
[Date "2024.10.10"]
[Round "6.26"]
[White "Kittilsen, Sigurd"]
[Black "Soham Datar"]
[Result "0-1"]
[ECO "B33"]
[WhiteElo "1981"]
[BlackElo "2188"]
[Annotator "RC"]
[PlyCount "72"]
[EventDate "2024.10.03"]
[EventType "swiss"]
[EventCountry "NOR"]
[SourceTitle "playchess.com"]
[Source "ChessBase"]
[SourceQuality "1"]
[TimeControl "40/6000:2400+30"]

1. e4 {[%emt 0:00:00]} c5 {[%emt 0:00:00]} 2. Nf3 {[%emt 0:00:00]} Nc6 {[%emt 0:00:00]} 3. d4 {[%emt 0:00:00]} cxd4 {[%emt 0:00:00]} 4. Nxd4 {[%emt 0:00:00]} Nf6 {[%emt 0:00:00]} 5. Nc3 {[%emt 0:00:00]} e5 {[%emt 0:00:00]} 6. Ndb5 {[%emt 0:00:00]} d6 {[%emt 0:00:00]} 7. Bg5 {[%emt 0:00:00]} a6 {[%emt 0:00:00]} 8. Na3 {[%emt 0:00:00]} b5 {[%emt 0:00:00]} 9. Bxf6 {[%emt 0:00:00]} gxf6 {[%emt 0:00:00]} 10. Nd5 {[%emt 0:00:00]} Bg7 {[%emt 0:00:00]} 11. Bd3 {[%emt 0:00:00]} Ne7 {[%emt 0:00:00]} 12. Nxe7 {[%emt 0:00:00]} Qxe7 {[%emt 0:00:00]} 13. O-O {[%emt 0:00:00]} O-O {[%emt 0:00:51]} 14. Qf3 {[%emt 0:00:00]} f5 {[%emt 0:09:41]} 15. exf5 {[%emt 0:00:00]} d5 {[%emt 0:02:58]} 16. Qxd5 {[%emt 0:00:00]} Bb7 {[%emt 0:01:48]} 17. Qb3 {[%emt 0:00:00]} e4 {[%emt 0:06:21]} 18. Rfe1 {[%emt 0:01:22]} Bd4 {[%emt 0:08:25]} 19. Bf1 {[%emt 0:15:30]} Qh4 {[%emt 0:10:41]} 20. Re2 {[%emt 0:12:18]} Rad8 {[%emt 0:03:21]} 21. c3 {[%emt 0:09:30]} Bc5 {[%emt 0:12:21]} 22. Nxb5 {[%emt 0:15:17]} e3 {[%emt 0:04:52]} 23. fxe3 {[%emt 0:10:29]} Bd5 {[%emt 0:02:27]} 24. Qd1 {[%emt 0:13:36]} axb5 {[%emt 0:00:54]} 25. Qe1 {[%emt 0:00:00]} Qf6 {[%emt 0:09:37]} 26. Kh1 {[%emt 0:03:33]} Be4 {[%emt 0:00:11]} 27. Qg3+ {[%emt 0:06:11]} Kh8 {[%emt 0:00:03]} 28. Rf2 {[%emt 0:00:00]} Bd6 {[%emt 0:01:36]} 29. Qg4 {[%emt 0:00:12]} Qh6 {[%emt 0:02:48]} 30. h3 {[%emt 0:01:25]} Rde8 {[%emt 0:01:34]} 31. f6 {[%emt 0:02:52]} Rg8 {[%emt 0:00:22]} 32. Qd7 {[%emt 0:00:00]} Re6 {[%emt 0:00:08]} 33. Kg1 {[%emt 0:04:21]} Qxh3 {[%emt 0:00:02]} 34. Bxb5 {[%emt 0:02:01]} Rxg2+ {[%emt 0:00:04]} 35. Kf1 {[%emt 0:00:00]} Rxf2+ {[%emt 0:00:41]} 36. Kxf2 {[%emt 0:00:00]} Rxf6+ {[%emt 0:00:00]} 0-1

[Event "Fagernes GM Open Autumn 2024"]
[Site "Fagernes"]
[Date "2024.10.10"]
[Round "6.27"]
[White "Hetland, Even"]
[Black "Kanyamarala, Trisha"]
[Result "0-1"]
[ECO "B67"]
[WhiteElo "1970"]
[BlackElo "2160"]
[Annotator "RC"]
[PlyCount "126"]
[EventDate "2024.10.03"]
[EventType "swiss"]
[EventCountry "NOR"]
[SourceTitle "playchess.com"]
[Source "ChessBase"]
[SourceQuality "1"]
[TimeControl "40/6000:2400+30"]

1. e4 {[%emt 0:00:00]} c5 {[%emt 0:00:00]} 2. Nf3 {[%emt 0:00:00]} d6 {[%emt 0:00:00]} 3. d4 {[%emt 0:00:00]} cxd4 {[%emt 0:00:00]} 4. Nxd4 {[%emt 0:00:00]} Nf6 {[%emt 0:00:00]} 5. Nc3 {[%emt 0:00:00]} Nc6 {[%emt 0:00:00]} 6. Bg5 {[%emt 0:00:00]} e6 {[%emt 0:00:00]} 7. Qd2 {[%emt 0:00:00]} a6 {[%emt 0:00:00]} 8. O-O-O {[%emt 0:00:00]} Bd7 {[%emt 0:00:00]} 9. f4 {[%emt 0:00:00]} b5 {[%emt 0:00:00]} 10. Bxf6 {[%emt 0:00:00]} gxf6 {[%emt 0:00:00]} 11. Kb1 {[%emt 0:00:00]} Qb6 {[%emt 0:00:31]} 12. Nxc6 {[%emt 0:00:00]} Bxc6 {[%emt 0:00:00]} 13. f5 {[%emt 0:00:00]} b4 {[%emt 0:00:00]} 14. Ne2 {[%emt 0:00:00]} e5 {[%emt 0:00:31]} 15. Ng3 {[%emt 0:00:00]} h5 {[%emt 0:00:20]} 16. h4 {[%emt 0:00:00]} Rd8 {[%emt 0:15:45]} 17. Bc4 {[%emt 0:09:27]} a5 {[%emt 0:14:44]} 18. Qe2 {[%emt 0:08:38]} Qc5 {[%emt 0:06:34]} 19. b3 {[%emt 0:15:54]} Ke7 {[%emt 0:03:17]} 20. Nxh5 {[%emt 0:16:03]} Bh6 {[%emt 0:01:42]} 21. Rhe1 {[%emt 0:06:21]} a4 {[%emt 0:02:22]} 22. g4 {[%emt 0:03:03]} Bf4 {[%emt 0:15:54]} 23. Rd3 {[%emt 0:06:59]} Rd7 {[%emt 0:05:01]} 24. Qf3 {[%emt 0:06:22]} a3 {[%emt 0:05:15]} 25. Red1 {[%emt 0:10:39]} Bb7 {[%emt 0:04:04]} 26. Nxf4 {[%emt 0:05:39]} exf4 {[%emt 0:00:00]} 27. Qxf4 {[%emt 0:00:00]} Qe5 {[%emt 0:05:45]} 28. Qxe5+ {[%emt 0:00:00]} fxe5 {[%emt 0:00:00]} 29. Rh3 {[%emt 0:01:30]} Bxe4 {[%emt 0:00:00]} 30. Rg1 {[%emt 0:01:04]} d5 {[%emt 0:03:29]} 31. Bd3 {[%emt 0:00:08]} Bxd3 {[%emt 0:00:44]} 32. cxd3 {[%emt 0:00:00]} f6 {[%emt 0:03:39]} 33. Rhh1 {[%emt 0:02:59]} Kf7 {[%emt 0:00:00]} 34. Kc2 {[%emt 0:00:00]} e4 {[%emt 0:02:34]} 35. Kd2 {[%emt 0:01:22]} Rc7 {[%emt 0:00:35]} 36. Rc1 {[%emt 0:00:25]} e3+ {[%emt 0:01:37]} 37. Kd1 {[%emt 0:02:00]} e2+ {[%emt 0:02:35]} 38. Kxe2 {[%emt 0:00:46]} Rxc1 {[%emt 0:00:00]} 39. Rxc1 {[%emt 0:00:00]} Rxh4 {[%emt 0:00:00]} 40. Rc7+ {[%emt 0:00:00]} Ke8 {[%emt 0:00:32]} 41. Kf3 {[%emt 0:05:12]} Rh3+ {[%emt 0:02:47]} 42. Kf4 {[%emt 0:01:28]} Rxd3 {[%emt 0:02:14]} 43. Rc2 {[%emt 0:08:34]} Kf7 {[%emt 0:10:24]} 44. Rc7+ {[%emt 0:00:18]} Ke8 {[%emt 0:01:42]} 45. Rc2 {[%emt 0:00:03]} Rd4+ {[%emt 0:02:52]} 46. Kg3 {[%emt 0:04:36]} Rd1 {[%emt 0:01:48]} 47. Rg2 {[%emt 0:05:36]} Ke7 {[%emt 0:03:29]} 48. Rf2 {[%emt 0:00:12]} Re1 {[%emt 0:08:21]} 49. Kf3 {[%emt 0:03:14]} Rd1 {[%emt 0:06:47]} 50. Kg2 {[%emt 0:07:10]} Rb1 {[%emt 0:02:30]} 51. Re2+ {[%emt 0:01:47]} Kf7 {[%emt 0:01:54]} 52. Kf3 {[%emt 0:02:06]} Rb2 {[%emt 0:01:35]} 53. Kf2 {[%emt 0:01:02]} Kg7 {[%emt 0:01:25]} 54. Ke3 {[%emt 0:01:37]} Rxe2+ {[%emt 0:01:34]} 55. Kxe2 {[%emt 0:00:11]} Kh6 {[%emt 0:00:05]} 56. Kd3 {[%emt 0:01:11]} Kg5 {[%emt 0:00:03]} 57. Kd4 {[%emt 0:00:01]} Kxg4 {[%emt 0:00:13]} 58. Kc5 {[%emt 0:00:03]} Kxf5 {[%emt 0:00:53]} 59. Kxb4 {[%emt 0:00:02]} d4 {[%emt 0:00:43]} 60. Kxa3 {[%emt 0:01:06]} Ke4 {[%emt 0:00:44]} 61. Kb2 {[%emt 0:00:37]} Ke3 {[%emt 0:00:41]} 62. a4 {[%emt 0:00:05]} d3 {[%emt 0:00:20]} 63. Kc1 {[%emt 0:00:05]} Ke2 {[%emt 0:00:05]} 0-1

[Event "Fagernes GM Open Autumn 2024"]
[Site "Fagernes"]
[Date "2024.10.10"]
[Round "6.28"]
[White "Kaewpitakkun, Pantham"]
[Black "Lien, Sebastian"]
[Result "1/2-1/2"]
[ECO "B11"]
[WhiteElo "2023"]
[BlackElo "1911"]
[Annotator "RC"]
[PlyCount "40"]
[EventDate "2024.10.03"]
[EventType "swiss"]
[EventCountry "NOR"]
[SourceTitle "playchess.com"]
[Source "ChessBase"]
[SourceQuality "1"]
[TimeControl "40/6000:2400+30"]

1. e4 {[%emt 0:00:00]} c6 {[%emt 0:00:00]} 2. Nf3 {[%emt 0:00:00]} d5 {[%emt 0:00:00]} 3. Nc3 {[%emt 0:00:00]} Nf6 {[%emt 0:00:00]} 4. Qe2 {[%emt 0:01:46]} Bg4 {[%emt 0:00:00]} 5. h3 {[%emt 0:01:30]} Bxf3 {[%emt 0:00:00]} 6. Qxf3 {[%emt 0:00:00]} e5 {[%emt 0:00:00]} 7. exd5 {[%emt 0:06:56]} cxd5 {[%emt 0:00:00]} 8. d3 {[%emt 0:04:03]} Bb4 {[%emt 0:00:00]} 9. Bd2 {[%emt 0:02:01]} Nc6 {[%emt 0:01:12]} 10. g3 {[%emt 0:01:34]} O-O {[%emt 0:04:16]} 11. Bg2 {[%emt 0:01:35]} e4 {[%emt 0:03:34]} 12. dxe4 {[%emt 0:03:29]} d4 {[%emt 0:39:50]} 13. Nb1 {[%emt 0:02:26]} Nxe4 {[%emt 0:03:50]} 14. Bxb4 {[%emt 0:07:01]} Nxb4 {[%emt 0:00:12]} 15. O-O {[%emt 0:00:01]} Re8 {[%emt 0:01:32]} 16. Qd1 {[%emt 0:04:58]} Rc8 {[%emt 0:07:17]} 17. Nd2 {[%emt 0:15:28]} Nxd2 {[%emt 0:01:41]} 18. Qxd2 {[%emt 0:01:26]} Nxc2 {[%emt 0:00:00]} 19. Rac1 {[%emt 0:00:00]} d3 {[%emt 0:01:27]} 20. Rcd1 {[%emt 0:03:27]} Qb6 {[%emt 0:06:06]} 1/2-1/2